bitfinex-derivatives/quotes_ETHF0:USTF0_20241008
["timestamp","ask_amount","ask_price","bid_price","bid_amount"]
[1728397612504,0.41187,2428.8,2428.2,3.2078]
[1728397612702,3.2078,2429.2,2429.0,0.41182]
[1728397612906,0.41187,2428.8,2428.5,0.4119]
[1728397613109,0.41185,2428.9,2428.6,0.41189]
[1728397613506,0.41187,2428.8,2428.6,0.41189]
[1728397614005,0.41186,2428.9,2428.2,3.2078]
[1728397614206,0.41186,2428.9,2428.6,0.41189]
[1728397615097,0.41188,2428.8,2428.2,3.58127598]
[1728397615406,8.58739,2429.0,2428.2,3.58127598]
[1728397615704,0.41193,2428.5,2428.3,0.41195]
[1728397615905,0.41193,2428.5,2428.3,0.41194]
[1728397616806,0.41193,2428.5,2428.2,3.2078]
[1728397616807,0.4119,2428.6,2428.2,3.61975]
[1728397617005,0.41193,2428.5,2428.3,0.41195]
[1728397617497,0.41195,2428.3,2428.1,1.22877]
[1728397617699,1.02977,2428.6,2427.5,3.2078]
[1728397617700,8.58764,2428.4,2427.5,3.2078]
[1728397617907,8.58764,2428.4,2427.2,1.03032]
[1728397617908,0.41203,2427.9,2427.7,0.41205]
[1728397618206,4.35,2428.0,2427.3,0.8297]
[1728397618406,0.41203,2427.9,2427.7,0.41205]
[1728397618602,3.2078,2428.1,2427.9,0.41202]
[1728397618810,3.2078,2428.1,2427.6,0.41207]
[1728397619006,0.41196,2428.3,2428.0,0.412]
[1728397619208,7.5578,2428.6,2427.8,3.2078]
[1728397619414,0.41192,2428.5,2427.9,1.44434]
[1728397619609,7.96971,2428.6,2428.4,0.41193]
[1728397619910,0.41192,2428.5,2428.3,0.41194]
[1728397620209,7.5578,2428.6,2428.5,0.41192]
[1728397620408,0.4097,2429.3,2428.1,1.02997]
[1728397620409,0.4096,2429.2,2428.4,3.2078]
[1728397620609,0.4096,2429.2,2428.7,0.41188]
[1728397620610,0.41186,2428.9,2428.7,0.41188]
[1728397621307,1.02963,2428.9,2428.4,3.2078]
[1728397621507,0.41187,2428.8,2428.7,0.41188]
[1728397621704,0.41188,2428.7,2428.6,0.41189]
[1728397621905,5.3796,2429.0,2428.4,3.2078]
[1728397622209,0.41186,2428.9,2428.4,3.2078]
[1728397622403,0.41186,2428.9,2428.7,0.41187]
[1728397622706,5.3796,2429.0,2428.5,0.4076]
[1728397623012,4.35,2429.0,2428.5,0.4076]
[1728397623207,5.37973,2428.7,2428.1,3.2078]
[1728397623400,0.41194,2428.4,2428.3,0.41194]
[1728397623905,0.41192,2428.5,2428.4,0.41192]
[1728397624106,1.02984,2428.4,2427.7,3.2078]
[1728397624317,0.41208,2427.6,2427.5,0.41208]
[1728397624609,0.41209,2427.5,2427.4,3.2078]
[1728397624810,0.41212,2427.4,2427.2,0.41213]
[1728397625009,0.41212,2427.3,2427.1,0.4152]
[1728397625215,4.35,2427.4,2427.1,0.4152]
[1728397625509,0.41213,2427.3,2426.9,3.2078]
[1728397625712,45.15,2427.7,2426.9,3.2078]
[1728397625904,0.41201,2428.0,2427.2,3.2078]
[1728397626099,0.41205,2427.8,2427.6,0.41206]
[1728397626303,0.41203,2427.9,2427.6,0.41207]
[1728397626512,0.41204,2427.8,2427.5,3.2078]
[1728397626722,0.41208,2427.6,2427.4,0.41209]
[1728397627103,45.15,2428.0,2427.1,3.2078]
[1728397627513,0.41206,2427.7,2427.5,0.41208]
[1728397627809,46.18004,2428.0,2427.7,0.41205]
[1728397627810,0.41203,2427.9,2427.7,0.41205]
[1728397628008,1.03005,2427.9,2427.1,3.2078]
[1728397628204,4.35,2427.3,2427.0,0.82826]
[1728397628411,0.41215,2427.1,2427.0,0.4161]
[1728397628803,5.38032,2427.3,2426.8,0.3926]
[1728397629006,0.41218,2427.0,2426.8,0.3926]
[1728397629308,0.41218,2427.0,2426.7,0.41222]
[1728397629309,0.4122,2426.9,2426.7,0.41222]
[1728397629609,5.38045,2427.0,2426.7,0.41221]
[1728397629829,0.41219,2426.9,2426.7,0.41222]
[1728397630041,7.5578,2427.3,2426.5,3.2078]
[1728397630253,1.44234,2427.5,2427.0,0.41215]
[1728397630442,1.44234,2427.5,2426.8,3.2078]
[1728397630443,7.9675,2427.6,2426.8,4.2383]
[1728397630749,0.41205,2427.8,2427.6,0.41207]
[1728397630938,0.41208,2427.6,2427.4,3.61989]
[1728397631139,4.35,2427.9,2427.1,3.2078]
[1728397631451,0.41211,2427.4,2427.3,0.41212]
[1728397631748,4.35,2427.6,2427.1,3.2078]
[1728397631950,0.41212,2427.3,2427.2,0.41214]
[1728397632663,4.35,2427.6,2427.3,0.41212]
[1728397632843,4.35,2427.6,2427.1,3.2078]
[1728397633161,0.41213,2427.3,2427.1,3.61994]
[1728397633445,1.03022,2427.5,2427.2,0.41213]
[1728397633651,4.35,2427.6,2427.1,3.2078]
[1728397633946,0.41209,2427.5,2427.4,3.2078]
[1728397634141,0.41208,2427.6,2427.4,3.6199]
[1728397634345,0.41208,2427.6,2427.5,0.41209]
[1728397634645,5.38007,2427.9,2427.4,3.2078]
[1728397634846,1.03009,2427.8,2427.4,3.2078]
[1728397635041,1.03009,2427.8,2427.2,0.4149]
[1728397635245,4.35,2427.9,2427.2,0.4149]
[1728397635444,4.76202,2427.9,2427.8,0.41203]
[1728397636125,14.4692,2427.9,2427.6,0.41207]
[1728397636326,4.76202,2427.9,2427.6,0.41207]
[1728397636621,4.76202,2427.9,2427.7,0.41205]
[1728397636622,8.4692,2427.9,2427.7,0.41205]
[1728397636916,7.96978,2428.2,2427.5,1.41951]
[1728397637143,4.35,2428.2,2428.1,0.41198]
[1728397637510,4.35,2428.2,2427.8,3.2078]
[1728397637511,48.3578,2428.5,2427.9,0.3864]
[1728397637725,3.6178,2428.8,2428.1,3.2078]
[1728397638011,4.76185,2428.9,2428.4,3.2078]
[1728397638207,4.35,2428.9,2428.8,0.41187]
[1728397638606,8.4668,2428.9,2428.8,0.41187]
[1728397638812,0.41193,2428.5,2428.2,0.80306]
[1728397639014,0.41197,2428.2,2427.9,3.2078]
[1728397639313,0.41197,2428.2,2428.0,0.412]
[1728397639619,4.35,2428.3,2427.7,0.387]
[1728397639821,4.35,2427.9,2427.7,0.387]
[1728397640124,4.76203,2427.9,2427.7,0.41204]
[1728397640612,8.4692,2427.9,2427.6,3.61986]
[1728397640815,0.41203,2427.8,2427.6,3.61986]
[1728397641016,4.35,2427.9,2427.6,3.2078]
[1728397641318,0.41204,2427.8,2427.6,3.61986]
[1728397641521,4.35,2427.9,2427.6,3.2078]
[1728397641712,0.41205,2427.7,2427.6,3.2078]
[1728397642315,0.41204,2427.8,2427.6,3.61986]
[1728397643211,4.35,2427.9,2427.6,3.2078]
[1728397643417,4.35,2427.9,2427.6,3.61987]
[1728397643613,0.41205,2427.7,2427.6,3.2078]
[1728397643824,0.41205,2427.7,2427.6,3.61987]
[1728397644050,0.41204,2427.8,2427.6,3.61987]
[1728397644244,0.41205,2427.7,2427.6,3.2078]
[1728397644723,0.41205,2427.7,2427.6,3.61987]
[1728397645026,0.41205,2427.8,2427.6,3.61987]
[1728397645212,0.41205,2427.8,2427.6,3.2078]
[1728397645410,4.35,2427.9,2427.6,3.2078]
[1728397645616,0.41205,2427.8,2427.6,3.2078]
[1728397645826,0.41205,2427.8,2427.7,0.41205]
[1728397646320,4.35,2427.9,2427.6,3.2078]
[1728397646522,4.35,2427.9,2427.7,0.41204]
[1728397646723,4.35,2427.9,2427.6,3.2078]
[1728397647023,4.76203,2427.9,2427.8,0.41203]
[1728397647628,0.41204,2427.8,2427.7,0.41204]
[1728397647823,0.41205,2427.7,2427.6,3.2078]
[1728397648323,0.41204,2427.8,2427.7,0.41205]
[1728397649121,4.35,2427.9,2427.8,0.41203]
[1728397649325,0.41205,2427.8,2427.7,0.41205]
[1728397649521,4.76203,2427.9,2427.8,0.41203]
[1728397649721,0.41205,2427.7,2427.6,3.61986]
[1728397650245,0.41205,2427.8,2427.7,0.41204]
[1728397650428,5.38006,2427.9,2427.6,3.2078]
[1728397650429,4.35,2427.9,2427.6,3.2078]
[1728397650731,4.76203,2427.9,2427.8,0.41203]
[1728397651038,0.41199,2428.1,2428.0,0.41198]
[1728397651227,4.76198,2428.2,2428.1,0.41198]
[1728397651724,8.88038,2428.2,2428.1,0.41198]
[1728397651920,4.76198,2428.2,2428.1,0.41198]
[1728397652519,4.35,2428.2,2428.1,0.41198]
[1728397652727,4.35,2428.5,2428.1,1.02997]
[1728397652930,4.76193,2428.5,2428.4,0.41193]
[1728397653132,4.35,2428.5,2428.4,0.41193]
[1728397653327,8.87952,2428.5,2428.4,0.41193]
[1728397653533,8.4676,2428.5,2428.4,0.41193]
[1728397653727,4.35,2428.5,2428.4,0.41193]
[1728397654130,4.35,2428.5,2428.2,0.41196]
[1728397654131,0.41195,2428.3,2428.2,0.41196]
[1728397654334,4.35,2428.5,2428.0,0.4144]
[1728397654538,0.41198,2428.1,2428.0,0.4144]
[1728397654732,4.76197,2428.2,2428.0,0.4144]
[1728397655034,0.41198,2428.1,2428.0,0.82639]
[1728397655731,4.35,2428.2,2428.0,0.4144]
[1728397655942,0.41203,2427.8,2427.7,3.2078]
[1728397656128,5.14838,2428.1,2427.5,0.41208]
[1728397656129,0.41209,2427.6,2427.5,0.41208]
[1728397656436,0.4121,2427.4,2427.3,0.3929]
[1728397656635,0.41212,2427.3,2427.2,0.41213]
[1728397657025,5.38024,2427.5,2426.9,0.7945]
[1728397657026,4.56041501,2427.5,2426.9,0.7945]
[1728397657333,4.35,2427.1,2426.7,0.41221]
[1728397657536,4.35,2426.9,2426.8,0.4122]
[1728397657724,4.76219,2426.9,2426.8,0.4122]
[1728397657928,4.76219,2426.9,2426.4,4.23847]
[1728397658125,4.35,2426.9,2426.4,4.23847]
[1728397658333,4.76219,2426.9,2426.8,0.4122]
[1728397658640,4.35,2426.9,2426.8,0.4122]
[1728397658937,4.35,2426.9,2426.4,3.2078]
[1728397659133,4.35,2426.6,2426.2,1.2071]
[1728397659437,4.35,2426.3,2426.2,0.8139]
[1728397659632,4.76229,2426.3,2426.2,0.4016]
[1728397660132,0.41232,2426.2,2426.1,0.41232]
[1728397660436,8.4716,2426.3,2426.2,0.41231]
[1728397660437,4.7623,2426.3,2426.2,0.41231]
[1728397660628,4.35,2426.3,2426.2,0.41231]
[1728397660935,7.5578,2426.6,2425.8,3.2078]
[1728397661236,0.4122,2426.8,2426.7,0.41221]
[1728397661535,4.35,2426.9,2426.4,0.4257]
[1728397661741,7.5578,2427.2,2426.4,4.0467]
[1728397661929,0.41216,2427.1,2427.0,0.41216]
[1728397662128,4.76215,2427.2,2427.1,0.41215]
[1728397662328,4.35,2427.2,2427.1,0.41215]
[1728397662532,4.35,2427.2,2426.7,3.2078]
[1728397662745,4.35,2427.2,2427.1,0.41215]
[1728397663145,0.41212,2427.4,2426.9,0.3995]
[1728397663439,4.35,2427.5,2427.4,0.4121]
[1728397664040,4.35,2427.8,2427.2,1.03035]
[1728397664233,7.5578,2428.3,2427.7,3.2078]
[1728397664429,0.41198,2428.2,2428.0,0.41199]
[1728397664741,5.3799,2428.3,2428.0,0.41199]
[1728397664938,0.41198,2428.1,2428.0,0.41199]
[1728397665331,0.412,2428.1,2427.8,0.8138]
[1728397665534,0.412,2428.0,2427.9,0.412]
[1728397665843,5.3799,2428.3,2428.0,0.412]
[1728397665844,0.412,2428.1,2428.0,0.412]
[1728397666141,5.3799,2428.3,2427.8,0.8138]
[1728397666347,4.76201,2428.0,2427.9,0.41201]
[1728397666638,0.41202,2427.9,2427.8,1.22583]
[1728397666832,0.41202,2427.9,2427.8,0.41203]
[1728397667034,0.41206,2427.7,2427.6,0.41206]
[1728397667245,0.41205,2427.8,2427.7,0.41205]
[1728397667435,0.41205,2427.8,2427.5,0.416]
[1728397667436,1.03007,2427.9,2427.5,0.416]
[1728397667737,0.41207,2427.6,2427.5,0.82808]
[1728397668137,0.41205,2427.7,2427.6,0.41206]
[1728397668342,0.41204,2427.8,2427.7,0.41205]
[1728397668936,0.41205,2427.7,2427.6,0.41206]
[1728397669245,0.41204,2427.8,2427.7,0.41204]
[1728397669543,1.03003,2428.0,2427.5,0.416]
[1728397669544,0.41201,2428.0,2427.9,0.41201]
[1728397670441,4.9,2428.2,2427.5,3.6238]
[1728397670633,0.41199,2428.1,2428.0,0.41199]
[1728397670950,0.41202,2427.9,2427.8,0.41202]
[1728397671245,0.412,2428.1,2428.0,0.41199]
[1728397671939,0.412,2428.1,2427.6,1.03017]
[1728397671940,0.41197,2428.2,2428.1,0.41198]
[1728397672139,1.02987,2428.4,2427.5,3.6238]
[1728397672449,0.41203,2427.9,2427.8,0.41203]
[1728397672635,4.9,2428.2,2427.5,3.6238]
[1728397672841,0.41201,2428.0,2427.9,0.41201]
[1728397673343,4.9,2428.2,2428.0,0.41199]
[1728397673644,5.31198,2428.2,2428.1,0.41198]
[1728397674444,1.02985,2428.4,2427.8,3.2078]
[1728397674640,0.41198,2428.2,2428.1,0.41198]
[1728397675044,2.55723499,2429.3,2428.3,1.02988]
[1728397675240,0.41178,2429.4,2428.9,3.2078]
[1728397675539,3.2078,2429.7,2428.9,3.2078]
[1728397675742,4.23711,2429.7,2429.2,0.41179]
[1728397675968,0.41176,2429.5,2428.9,3.2078]
[1728397676140,41.2097,2429.8,2428.9,3.2078]
[1728397676341,0.41175,2429.5,2429.3,0.41178]
[1728397676543,41.2097,2429.8,2428.9,3.2078]
[1728397676743,3.2078,2429.7,2428.9,3.2078]
[1728397677043,4.2371,2429.7,2428.9,3.2078]
[1728397677445,0.4118,2429.2,2429.0,0.41182]
[1728397677652,1.02941,2429.5,2428.6,3.2078]
[1728397677653,3.2078,2429.4,2428.6,3.2078]
[1728397677854,4.9,2428.7,2428.2,4.73964593]
[1728397678145,4.9,2428.7,2427.5,2.06041]
[1728397678146,0.41191,2428.6,2428.4,0.41193]
[1728397678347,5.92973,2428.7,2427.9,1.03005]
[1728397678538,1.02976,2428.6,2427.9,0.41202]
[1728397678743,1.02976,2428.6,2427.8,3.2078]
[1728397678744,0.41201,2428.0,2427.8,3.2078]
[1728397679048,1.02992,2428.2,2427.6,0.3901]
[1728397679252,0.41202,2427.9,2427.6,0.80215]
[1728397679641,1.02992,2428.2,2427.3,4.23808]
[1728397679642,0.41206,2427.7,2427.4,0.4121]
[1728397679843,0.41203,2427.9,2427.4,0.4121]
[1728397680043,3.2078,2428.0,2427.3,3.2078]
[1728397680242,1.03001,2428.1,2427.3,3.2078]
[1728397680442,4.2377,2428.3,2427.3,3.2078]
[1728397680747,0.41204,2427.8,2427.5,0.41208]
[1728397680937,0.41205,2427.7,2427.4,0.41209]
[1728397681138,1.44208,2427.9,2427.3,3.61991]
[1728397681342,3.2078,2428.0,2427.3,3.2078]
[1728397681343,8.1078,2428.0,2427.3,3.2078]
[1728397681547,0.41208,2427.6,2427.3,0.41211]
[1728397681939,0.41209,2427.5,2427.3,0.41211]
[1728397682485,0.4047,2427.9,2427.2,0.4184]
[1728397682646,0.4047,2427.9,2425.6,2.15022005]
[1728397682647,8.1078,2427.7,2426.7,3.2078]
[1728397682947,8.1078,2427.7,2427.0,0.41216]
[1728397683250,8.1078,2427.7,2426.5,0.4251]
[1728397683446,0.4122,2426.9,2426.8,0.4122]
[1728397683640,1.03039,2427.2,2426.5,0.41226]
[1728397683950,8.31168309,2427.4,2426.1,3.62011]
[1728397683951,1.44293,2426.5,2426.1,3.62011]
[1728397684144,1.0306,2426.6,2425.8,3.6329]
[1728397684346,4.9,2426.0,2425.5,3.2078]
[1728397684537,4.9,2426.0,2424.8,1.07511002]
[1728397684538,0.41242,2425.6,2425.3,0.41245]
[1728397684747,4.9,2426.0,2425.2,3.2078]
[1728397684950,0.4124,2425.7,2425.4,0.41243]
[1728397685152,0.4124,2425.7,2425.3,0.41246]
[1728397685153,40.8,2425.7,2425.3,0.41246]
[1728397685453,0.41237,2425.9,2425.5,0.41241]
[1728397685643,0.41238,2425.8,2425.5,0.41242]
[1728397685845,0.4124,2425.7,2425.4,0.41243]
[1728397686058,1.03086,2426.0,2425.2,3.2078]
[1728397686258,44.0078,2426.1,2425.2,3.2078]
[1728397686551,0.4159,2425.9,2425.2,3.2078]
[1728397686744,3.2078,2426.1,2425.5,3.2078]
[1728397686948,0.41229,2426.3,2425.6,4.5348]
[1728397687148,0.41232,2426.2,2425.8,0.41237]
[1728397687353,0.41234,2426.0,2425.7,0.41239]
[1728397687553,0.41233,2426.1,2425.7,0.41239]
[1728397687755,40.8,2426.3,2425.6,0.4124]
[1728397687950,0.41232,2426.1,2425.8,0.41237]
[1728397688158,41.2123,2426.3,2425.6,0.4124]
[1728397688351,40.8,2426.3,2426.0,0.41233]
[1728397688553,40.8,2426.3,2425.8,3.2078]
[1728397688852,41.2123,2426.3,2425.6,0.4124]
[1728397689052,0.41228,2426.4,2425.6,0.4124]
[1728397689267,0.41229,2426.4,2426.0,0.41233]
[1728397689647,41.21229,2426.4,2426.0,0.41233]
[1728397689848,3.2078,2426.6,2425.8,3.2078]
[1728397690058,4.0221,2426.9,2426.1,3.2078]
[1728397690254,0.41221,2426.8,2426.3,0.41228]
[1728397690461,4.0221,2426.9,2426.3,0.41228]
[1728397690755,4.0221,2426.9,2426.0,3.2078]
[1728397691058,0.4122,2426.9,2426.3,3.2078]
[1728397691258,0.41218,2427.0,2426.7,0.41221]
[1728397691653,0.41222,2426.8,2426.5,0.41225]
[1728397691960,1.03049,2426.9,2426.3,0.41228]
[1728397692161,1.03049,2426.9,2425.9,4.2387]
[1728397692162,0.417,2426.8,2425.9,4.6493]
[1728397692376,0.41222,2426.7,2426.4,0.41226]
[1728397692561,0.41224,2426.7,2426.4,0.41226]
[1728397692777,0.41224,2426.6,2426.3,0.41228]
[1728397692952,0.41226,2426.5,2426.3,0.41228]
[1728397693149,0.417,2426.8,2425.9,3.6184]
[1728397693353,0.41225,2426.6,2426.3,0.41228]
[1728397693563,0.41225,2426.6,2425.9,3.6184]
[1728397693564,0.41222,2426.7,2426.4,0.41226]
[1728397693758,0.41223,2426.7,2426.4,0.41226]
[1728397693953,0.417,2426.8,2425.9,3.6184]
[1728397694257,1.44382,2426.9,2426.3,0.41229]
[1728397694456,0.41226,2426.5,2426.3,0.41229]
[1728397694665,1.03052,2426.8,2426.1,3.2078]
[1728397694957,1.03052,2426.8,2426.3,0.41229]
[1728397694958,0.41226,2426.5,2426.3,0.41229]
[1728397695358,41.6303,2426.9,2425.9,0.4106]
[1728397695359,3.2078,2426.7,2425.9,0.4106]
[1728397695557,0.41231,2426.2,2426.0,0.41234]
[1728397695859,0.41232,2426.2,2426.0,0.41234]
[1728397696058,0.41234,2426.0,2425.9,0.4106]
[1728397696255,1.03072,2426.4,2425.7,3.2078]
[1728397696455,0.41234,2426.0,2425.8,0.41236]
[1728397696650,0.41234,2426.0,2425.9,4.1224]
[1728397697054,0.41237,2425.8,2425.7,3.2078]
[1728397697660,4.1224,2425.8,2424.8,3.6249]
[1728397697849,1.03107,2425.5,2424.8,3.2078]
[1728397698056,0.4125,2425.1,2424.9,0.41253]
[1728397698355,4.9,2425.3,2424.4,3.2078]
[1728397698562,1.03124,2425.1,2424.4,3.2078]
[1728397698755,0.41258,2424.7,2424.5,0.41259]
[1728397698959,4.9,2424.9,2424.4,0.41261]
[1728397699161,1.03137,2424.8,2424.4,3.2078]
[1728397699360,0.4126,2424.5,2424.3,0.41261]
[1728397699661,0.4126,2424.5,2424.0,0.41267]
[1728397699662,1.0315,2424.5,2424.0,0.41267]
[1728397699967,0.41262,2424.4,2424.2,0.41265]
[1728397700165,1.03132,2425.0,2424.0,3.2078]
[1728397700466,4.23906,2425.1,2424.3,3.2078]
[1728397700660,40.8,2425.0,2424.3,3.2078]
[1728397701555,0.41254,2424.9,2424.7,0.41255]
[1728397701865,0.41254,2424.9,2424.7,0.41256]
[1728397702065,9.54262,2425.2,2424.9,0.41252]
[1728397702066,0.4125,2425.1,2424.9,0.41252]
[1728397702363,0.4036,2425.2,2424.7,3.2078]
[1728397702564,0.4125,2425.1,2424.9,0.41252]
[1728397702967,0.41255,2424.8,2424.6,0.41257]
[1728397703258,0.41257,2424.7,2424.5,0.41259]
[1728397703460,8.5114,2425.2,2424.4,3.2078]
[1728397703671,0.41252,2425.0,2424.9,0.41253]
[1728397703855,0.4125,2425.1,2424.9,0.41252]
[1728397704053,0.4036,2425.2,2424.5,1.0315]
[1728397704264,0.41253,2424.9,2424.7,0.41255]
[1728397704659,0.41253,2424.9,2424.8,0.41254]
[1728397704853,0.41253,2424.9,2424.7,0.41255]
[1728397705063,1.03128,2425.1,2424.4,3.2078]
[1728397705263,0.41253,2424.9,2424.7,0.41255]
[1728397705456,0.41252,2425.0,2424.8,0.41253]
[1728397705657,0.41253,2424.9,2424.8,0.41254]
[1728397706064,4.02388,2425.2,2425.0,0.4125]
[1728397706363,3.6114,2425.2,2424.6,1.03143]
[1728397706565,0.82507,2425.3,2425.2,0.41248]
[1728397706763,5.31244,2425.5,2425.3,0.41245]
[1728397706970,0.41244,2425.4,2425.3,0.41245]
[1728397707464,0.41244,2425.4,2424.8,1.42077]
[1728397707465,4.9,2425.5,2425.1,0.41248]
[1728397707664,0.41246,2425.3,2425.2,0.41247]
[1728397708157,4.9,2425.5,2424.8,0.3894]
[1728397708358,0.20290435,2425.6,2425.0,3.2078]
[1728397708573,3.2078,2425.7,2424.8,0.3894]
[1728397708574,0.41244,2425.5,2425.3,0.41245]
[1728397708763,0.41245,2425.4,2425.3,0.41245]
[1728397708968,3.2078,2425.7,2424.9,3.2078]
[1728397709161,3.2078,2425.7,2425.6,0.41241]
[1728397709362,3.62015,2426.0,2425.9,0.41235]
[1728397709562,3.62015,2426.0,2425.6,4.1224]
[1728397709563,0.41239,2425.8,2425.6,0.4124]
[1728397709758,1.87496,2426.3,2425.4,0.4204]
[1728397709759,4.9,2426.2,2425.4,0.4204]
[1728397709958,5.9308,2426.2,2425.5,3.6328]
[1728397710162,5.9308,2426.2,2425.5,0.425]
[1728397710366,5.9308,2426.2,2425.5,3.6328]
[1728397710367,0.41235,2426.0,2425.5,3.6328]
[1728397710670,0.41232,2426.2,2426.1,0.41232]
[1728397710971,0.41224,2426.6,2426.5,0.41224]
[1728397711175,0.41224,2426.6,2426.1,6.0]
[1728397711176,0.408,2426.7,2426.1,4.23859]
[1728397711378,0.41221,2426.8,2426.4,3.2078]
[1728397711563,5.93037,2427.2,2426.4,3.2078]
[1728397711763,5.93037,2427.2,2426.2,1.45577]
[1728397711764,4.9,2427.2,2426.2,1.45577]
[1728397711986,0.4122,2426.9,2426.7,0.41221]
[1728397712170,0.41224,2426.6,2426.5,0.41225]
[1728397712364,0.41224,2426.6,2426.2,0.425]
[1728397712365,0.41222,2426.8,2426.6,0.41223]
[1728397712569,0.41222,2426.7,2426.6,0.41223]
[1728397712977,4.9,2427.2,2426.4,3.2078]
[1728397712978,5.93037,2427.2,2426.4,3.2078]
[1728397713269,1.03041,2427.1,2426.3,1.03073]
[1728397713473,0.4122,2426.8,2426.7,0.41221]
[1728397713674,0.41219,2426.9,2426.8,0.4122]
[1728397714067,1.03041,2427.1,2427.0,0.41216]
[1728397714068,0.41216,2427.1,2427.0,0.41216]
[1728397714468,0.41217,2427.0,2426.9,0.41218]
[1728397714769,0.41223,2426.7,2426.5,0.41224]
[1728397714974,1.03043,2427.0,2426.3,3.2078]
[1728397715172,0.41221,2426.8,2426.7,0.41222]
[1728397715971,0.41222,2426.7,2426.6,0.41223]
[1728397716174,1.0305,2426.9,2426.3,3.2078]
[1728397716381,0.41223,2426.7,2426.6,0.41224]
[1728397716773,0.41221,2426.8,2426.3,3.2078]
[1728397717276,0.41221,2426.8,2426.6,0.41223]
[1728397717484,0.41224,2426.6,2426.4,0.41227]
[1728397717673,1.03043,2427.0,2426.3,3.2078]
[1728397717878,0.41216,2427.1,2426.9,0.41218]
[1728397718178,0.8241,2427.3,2426.5,0.41225]
[1728397718179,3.2078,2427.2,2426.5,0.41225]
[1728397718377,3.2078,2427.2,2426.4,3.2078]
[1728397718378,0.4122,2426.9,2426.7,0.41221]
[1728397718575,4.9,2427.0,2426.8,0.41219]
[1728397718576,0.41218,2427.0,2426.8,0.41219]
[1728397718770,0.41218,2427.0,2426.5,4.1208]
[1728397718992,0.41216,2427.1,2426.6,0.41224]
[1728397719275,0.41215,2427.2,2427.0,0.41217]
[1728397719477,0.82013,2427.3,2426.7,4.23834]
[1728397719776,0.408,2427.3,2427.1,0.41215]
[1728397719977,0.41215,2427.2,2427.0,0.41216]
[1728397720174,0.41215,2427.2,2426.7,3.2078]
[1728397720374,0.41213,2427.3,2427.1,0.41214]
[1728397720575,0.41213,2427.3,2427.2,0.41214]
[1728397720777,40.8,2427.4,2427.0,3.2078]
[1728397721081,41.21211,2427.4,2427.2,0.41212]
[1728397721376,41.21211,2427.4,2427.1,0.41215]
[1728397721377,0.41214,2427.2,2427.1,0.41215]
[1728397721581,0.41213,2427.3,2427.2,0.41214]
[1728397721766,0.41213,2427.3,2427.0,3.2078]
[1728397721767,41.83022,2427.5,2427.0,3.2078]
[1728397721972,3.2078,2427.6,2426.9,0.4283]
[1728397722272,0.41217,2427.0,2426.9,0.4283]
[1728397722683,0.41217,2427.0,2426.9,4.5483]
[1728397722867,0.41217,2427.0,2426.9,4.12]
[1728397723570,4.23817,2427.2,2426.9,4.12]
[1728397723571,1.0303,2427.4,2426.9,4.12]
[1728397723775,0.41216,2427.1,2427.0,0.41216]
[1728397723981,1.03033,2427.3,2427.0,0.41216]
[1728397724175,0.41214,2427.2,2427.0,0.41216]
[1728397724376,0.41214,2427.2,2426.7,4.23835]
[1728397724580,0.41213,2427.3,2427.2,0.41214]
[1728397725184,0.41214,2427.2,2426.9,0.4102]
[1728397725487,0.41214,2427.2,2427.0,0.41216]
[1728397725883,0.41212,2427.3,2427.1,4.12]
[1728397726173,0.41212,2427.3,2427.2,0.41213]
[1728397726374,1.03024,2427.5,2426.9,0.4102]
[1728397726575,41.83019,2427.6,2426.9,0.4102]
[1728397726576,40.8,2427.6,2426.9,0.4102]
[1728397726784,0.41214,2427.3,2427.2,0.41213]
[1728397727281,0.41214,2427.3,2426.7,4.23835]
[1728397727483,0.41219,2427.0,2426.9,0.41218]
[1728397727894,40.8,2427.6,2426.9,7.3278]
[1728397728188,0.41216,2427.1,2427.0,0.41216]
[1728397728687,0.41216,2427.1,2427.0,4.53216]
[1728397729113,0.41216,2427.1,2427.0,0.41216]
[1728397729484,0.41216,2427.1,2426.5,5.05062]
[1728397729485,0.41224,2426.7,2426.6,0.41223]
[1728397729791,0.41212,2427.4,2427.2,0.41214]
[1728397729985,1.03024,2427.5,2427.2,0.41213]
[1728397729986,0.41213,2427.3,2427.2,0.41213]
[1728397730386,0.41215,2427.2,2427.1,0.41214]
[1728397730681,1.03039,2427.2,2426.7,0.4246]
[1728397730986,0.41219,2427.0,2426.9,0.41218]
[1728397731385,1.03045,2427.0,2426.6,3.2078]
[1728397731587,0.4253,2427.1,2426.8,0.41219]
[1728397731888,4.36,2427.0,2426.2,3.2078]
[1728397732083,7.5678,2426.7,2425.5,3.2078]
[1728397732316,0.4052,2427.0,2425.5,3.2078]
[1728397732317,7.5678,2426.4,2425.5,3.2078]
[1728397732490,3.2078,2426.0,2425.1,3.5981]
[1728397732687,0.41244,2425.5,2425.0,3.2078]
[1728397732989,0.4124,2425.7,2425.4,0.41243]
[1728397733187,1.03094,2425.8,2425.2,0.41247]
[1728397733482,0.41244,2425.5,2425.2,0.41247]
[1728397733790,0.41239,2425.7,2425.0,3.2078]
[1728397733980,0.41239,2425.7,2425.5,0.41242]
[1728397734188,0.41238,2425.8,2425.5,0.41242]